[Event "Early-Titled-Tuesday-Blitz-May-07-2024"]
[Site "Chess.com"]
[Date "2024.05.07"]
[Round "2"]
[White "chess123456s"]
[Black "KuzubovYuriy"]
[Result "0-1"]
[WhiteElo "2626"]
[BlackElo "2963"]
[TimeControl "180+1"]
[EndTime "8:19:47 PDT"]
[Termination "KuzubovYuriy won by checkmate"]

1. Nf3 {[%clk 0:03:00.9]} 1... d5 {[%clk 0:02:59.8]} 2. g3 {[%clk 0:03:00.9]}
2... Bg4 {[%clk 0:02:59.1]} 3. Bg2 {[%clk 0:03:00.8]} 3... Nd7 {[%clk
0:02:59.5]} 4. c4 {[%clk 0:03:00.3]} 4... e6 {[%clk 0:02:57.1]} 5. O-O {[%clk
0:02:58.3]} 5... Bxf3 {[%clk 0:02:56.5]} 6. Bxf3 {[%clk 0:02:57.8]} 6... Ne5
{[%clk 0:02:56.7]} 7. Qb3 {[%clk 0:02:43.9]} 7... Nxf3+ {[%clk 0:02:54]} 8. Qxf3
{[%clk 0:02:44.8]} 8... Nf6 {[%clk 0:02:53.5]} 9. b3 {[%clk 0:02:44.7]} 9... Be7
{[%clk 0:02:47.9]} 10. Bb2 {[%clk 0:02:45.2]} 10... O-O {[%clk 0:02:48.2]} 11.
d3 {[%clk 0:02:45.5]} 11... c6 {[%clk 0:02:46.3]} 12. Nd2 {[%clk 0:02:44.5]}
12... d4 {[%clk 0:02:43.7]} 13. Ne4 {[%clk 0:02:40.1]} 13... a5 {[%clk
0:02:35.9]} 14. Nxf6+ {[%clk 0:02:39.2]} 14... Bxf6 {[%clk 0:02:36.1]} 15. a3
{[%clk 0:02:40.1]} 15... Qe7 {[%clk 0:02:28.6]} 16. e4 {[%clk 0:02:38.8]} 16...
dxe3 {[%clk 0:02:25.1]} 17. Bxf6 {[%clk 0:02:37.8]} 17... exf2+ {[%clk
0:02:25.1]} 18. Rxf2 {[%clk 0:02:38.7]} 18... Qxf6 {[%clk 0:02:22.9]} 19. Qxf6
{[%clk 0:02:38.9]} 19... gxf6 {[%clk 0:02:23.8]} 20. Rxf6 {[%clk 0:02:39.6]}
20... Rad8 {[%clk 0:02:21.7]} 21. Rd1 {[%clk 0:02:38.9]} 21... b5 {[%clk
0:02:18.3]} 22. Rf4 {[%clk 0:02:32.6]} 22... f5 {[%clk 0:02:15.3]} 23. Re1
{[%clk 0:02:00.3]} 23... Kf7 {[%clk 0:02:03.7]} 24. d4 {[%clk 0:01:59.2]} 24...
Rd7 {[%clk 0:01:57]} 25. Kf2 {[%clk 0:01:49.9]} 25... bxc4 {[%clk 0:01:55.7]}
26. bxc4 {[%clk 0:01:49.5]} 26... Rb8 {[%clk 0:01:54.8]} 27. g4 {[%clk
0:01:42.9]} 27... Rb2+ {[%clk 0:01:50.2]} 28. Re2 {[%clk 0:01:41.2]} 28... Rxe2+
{[%clk 0:01:40.9]} 29. Kxe2 {[%clk 0:01:42.1]} 29... Kf6 {[%clk 0:01:40.9]} 30.
h4 {[%clk 0:01:38.1]} 30... Rb7 {[%clk 0:01:38]} 31. gxf5 {[%clk 0:01:23.1]}
31... exf5 {[%clk 0:01:36.6]} 32. Rf3 {[%clk 0:01:08.3]} 32... Rb2+ {[%clk
0:01:33.1]} 33. Kd1 {[%clk 0:00:41.4]} 33... Rh2 {[%clk 0:01:30.2]} 34. Rf4
{[%clk 0:00:23]} 34... Rh3 {[%clk 0:01:27.2]} 35. d5 {[%clk 0:00:17.4]} 35...
cxd5 {[%clk 0:01:24.2]} 36. cxd5 {[%clk 0:00:18.3]} 36... Rxa3 {[%clk
0:01:22.2]} 37. Rd4 {[%clk 0:00:15.9]} 37... Ke5 {[%clk 0:01:21]} 38. Rd2 {[%clk
0:00:12.2]} 38... Kd6 {[%clk 0:01:19.1]} 39. Ke2 {[%clk 0:00:11.3]} 39... Rh3
{[%clk 0:01:17.2]} 40. Rd4 {[%clk 0:00:11.1]} 40... h5 {[%clk 0:01:08.8]} 41.
Kf2 {[%clk 0:00:10.7]} 41... Ra3 {[%clk 0:01:06.6]} 42. Kg2 {[%clk 0:00:06.5]}
42... Rb3 {[%clk 0:01:04.7]} 43. Ra4 {[%clk 0:00:05.9]} 43... Rb5 {[%clk
0:01:04.4]} 44. Kf3 {[%clk 0:00:06.5]} 44... Ke5 {[%clk 0:01:03.8]} 45. d6
{[%clk 0:00:05.3]} 45... Kxd6 {[%clk 0:00:59.2]} 46. Kf4 {[%clk 0:00:06]} 46...
Rb4+ {[%clk 0:00:59.5]} 47. Rxb4 {[%clk 0:00:04.7]} 47... axb4 {[%clk
0:01:00.4]} 48. Kg5 {[%clk 0:00:05.6]} 48... b3 {[%clk 0:01:00.5]} 49. Kxh5
{[%clk 0:00:06.5]} 49... b2 {[%clk 0:01:01.1]} 50. Kg6 {[%clk 0:00:07.4]} 50...
b1=Q {[%clk 0:01:01.6]} 51. h5 {[%clk 0:00:08.3]} 51... f4+ {[%clk 0:01:02.2]}
52. Kg7 {[%clk 0:00:09.1]} 52... f3 {[%clk 0:01:02.8]} 53. h6 {[%clk 0:00:10]}
53... f2 {[%clk 0:01:03.4]} 54. h7 {[%clk 0:00:10.4]} 54... Qxh7+ {[%clk
0:01:03.6]} 55. Kf6 {[%clk 0:00:10.8]} 55... f1=Q+ {[%clk 0:01:04]} 56. Kg5
{[%clk 0:00:11.6]} 56... Qff5# {[%clk 0:01:03.9]} 0-1

[Event "Early-Titled-Tuesday-Blitz-May-07-2024"]
[Site "Chess.com"]
[Date "2024.05.07"]
[Round "2"]
[White "banjadvorovi"]
[Black "wild3000"]
[Result "1/2-1/2"]
[WhiteElo "2359"]
[BlackElo "2516"]
[TimeControl "180+1"]
[EndTime "8:19:47 PDT"]
[Termination "Game drawn by repetition"]

1. e4 {[%clk 0:03:00.9]} 1... e6 {[%clk 0:03:00.1]} 2. d3 {[%clk 0:03:00.6]}
2... c5 {[%clk 0:02:59.9]} 3. Nd2 {[%clk 0:03:01.5]} 3... Nc6 {[%clk 0:03:00.1]}
4. g3 {[%clk 0:03:02]} 4... g6 {[%clk 0:02:59.9]} 5. Bg2 {[%clk 0:03:02.5]} 5...
Bg7 {[%clk 0:03:00.5]} 6. Ngf3 {[%clk 0:03:03]} 6... d5 {[%clk 0:02:59.7]} 7.
O-O {[%clk 0:03:02.9]} 7... Nf6 {[%clk 0:02:59.4]} 8. exd5 {[%clk 0:03:03]} 8...
Nxd5 {[%clk 0:02:59.4]} 9. Re1 {[%clk 0:03:01.1]} 9... O-O {[%clk 0:02:59]} 10.
Nc4 {[%clk 0:03:01.4]} 10... b6 {[%clk 0:02:58.3]} 11. Nfe5 {[%clk 0:03:01.4]}
11... Bb7 {[%clk 0:02:57.3]} 12. Nxc6 {[%clk 0:02:59.6]} 12... Bxc6 {[%clk
0:02:57.4]} 13. c3 {[%clk 0:02:54.6]} 13... Qc7 {[%clk 0:02:40.2]} 14. Qc2
{[%clk 0:02:53.6]} 14... b5 {[%clk 0:02:34.6]} 15. Ne3 {[%clk 0:02:52.9]} 15...
Rfd8 {[%clk 0:02:29.3]} 16. Nxd5 {[%clk 0:02:47.4]} 16... Bxd5 {[%clk
0:02:30.2]} 17. Bf4 {[%clk 0:02:47.6]} 17... Qc6 {[%clk 0:02:29]} 18. Bxd5
{[%clk 0:02:46.5]} 18... Rxd5 {[%clk 0:02:29]} 19. Rad1 {[%clk 0:02:45.4]} 19...
Rad8 {[%clk 0:02:27.4]} 20. Rd2 {[%clk 0:02:45]} 20... h5 {[%clk 0:02:21.3]} 21.
h4 {[%clk 0:02:43]} 21... a5 {[%clk 0:02:16.8]} 22. Red1 {[%clk 0:02:41.3]}
22... a4 {[%clk 0:02:16.9]} 23. a3 {[%clk 0:02:36.4]} 23... Rf5 {[%clk
0:02:11.5]} 24. Be3 {[%clk 0:02:31.9]} 24... Qf3 {[%clk 0:01:58.7]} 25. d4
{[%clk 0:02:24.1]} 25... c4 {[%clk 0:01:53.5]} 26. Re1 {[%clk 0:02:21.5]} 26...
Qg4 {[%clk 0:01:47.8]} 27. Qd1 {[%clk 0:02:18.8]} 27... Qh3 {[%clk 0:01:46.7]}
28. Qe2 {[%clk 0:02:12.8]} 28... Rdd5 {[%clk 0:01:40.5]} 29. Qf1 {[%clk
0:02:10.5]} 29... Qg4 {[%clk 0:01:39.3]} 30. Qe2 {[%clk 0:02:09.2]} 30... Rf3
{[%clk 0:01:38.2]} 31. Kg2 {[%clk 0:01:58.8]} 31... Rdf5 {[%clk 0:01:37.2]} 32.
d5 {[%clk 0:01:43.7]} 32... exd5 {[%clk 0:01:33.3]} 33. Bd4 {[%clk 0:01:34.9]}
33... Bxd4 {[%clk 0:01:28.8]} 34. Rxd4 {[%clk 0:01:35.8]} 34... Rxf2+ {[%clk
0:01:24.8]} 35. Qxf2 {[%clk 0:01:35.6]} 35... Rxf2+ {[%clk 0:01:24.8]} 36. Kxf2
{[%clk 0:01:36.5]} 36... Qf5+ {[%clk 0:01:23]} 37. Rf4 {[%clk 0:01:33.2]} 37...
Qd3 {[%clk 0:01:11.7]} 38. Rd4 {[%clk 0:01:27.5]} 38... Qf5+ {[%clk 0:01:06.2]}
39. Rf4 {[%clk 0:01:24.2]} 39... Qd7 {[%clk 0:01:06.2]} 40. Re5 {[%clk
0:01:18.6]} 40... Qh3 {[%clk 0:01:02.1]} 41. Re2 {[%clk 0:01:11.2]} 41... Kg7
{[%clk 0:00:56.6]} 42. Re7 {[%clk 0:01:03.9]} 42... Qh2+ {[%clk 0:00:54.8]} 43.
Kf3 {[%clk 0:01:02.9]} 43... Qh1+ {[%clk 0:00:52.4]} 44. Kf2 {[%clk 0:01:03]}
44... Qh2+ {[%clk 0:00:35.8]} 45. Kf3 {[%clk 0:01:03.1]} 45... Qh1+ {[%clk
0:00:22.4]} 46. Kf2 {[%clk 0:00:32.1]} 46... Qh2+ {[%clk 0:00:21.8]} 1/2-1/2

[Event "Early-Titled-Tuesday-Blitz-May-07-2024"]
[Site "Chess.com"]
[Date "2024.05.07"]
[Round "2"]
[White "LuisFSiles"]
[Black "GMthekingindian"]
[Result "1-0"]
[WhiteElo "2491"]
[BlackElo "2249"]
[TimeControl "180+1"]
[EndTime "8:19:48 PDT"]
[Termination "LuisFSiles won on time"]

1. e4 {[%clk 0:03:00.9]} 1... c5 {[%clk 0:02:59.8]} 2. Nf3 {[%clk 0:03:00.6]}
2... e6 {[%clk 0:03:00.3]} 3. c3 {[%clk 0:03:00.4]} 3... Nf6 {[%clk 0:03:00.3]}
4. e5 {[%clk 0:03:00.5]} 4... Nd5 {[%clk 0:03:01]} 5. Bc4 {[%clk 0:03:00.5]}
5... d6 {[%clk 0:02:59.8]} 6. d4 {[%clk 0:03:00.1]} 6... cxd4 {[%clk 0:02:59.8]}
7. cxd4 {[%clk 0:03:01]} 7... Be7 {[%clk 0:02:59.2]} 8. O-O {[%clk 0:03:00.4]}
8... O-O {[%clk 0:02:59.2]} 9. Qe2 {[%clk 0:03:00.5]} 9... b6 {[%clk 0:02:59.2]}
10. a3 {[%clk 0:02:45.9]} 10... Bb7 {[%clk 0:02:11.3]} 11. Nc3 {[%clk 0:02:33]}
11... Nxc3 {[%clk 0:02:09.3]} 12. bxc3 {[%clk 0:02:33.9]} 12... Nd7 {[%clk
0:02:09]} 13. exd6 {[%clk 0:02:32]} 13... Bxd6 {[%clk 0:02:09.9]} 14. Bd3 {[%clk
0:02:29]} 14... Qc7 {[%clk 0:02:06.1]} 15. h4 {[%clk 0:02:20.2]} 15... Qxc3
{[%clk 0:01:53.8]} 16. Bb2 {[%clk 0:01:59.8]} 16... Qa5 {[%clk 0:01:53.8]} 17.
Ne5 {[%clk 0:01:49.1]} 17... Bxe5 {[%clk 0:01:45.1]} 18. dxe5 {[%clk 0:01:48]}
18... Nc5 {[%clk 0:01:42.1]} 19. Bc2 {[%clk 0:01:45.6]} 19... Ba6 {[%clk
0:01:40.1]} 20. Qh5 {[%clk 0:01:28.3]} 20... g6 {[%clk 0:01:39.7]} 21. Qh6
{[%clk 0:01:28.5]} 21... Bxf1 {[%clk 0:01:38.3]} 22. Rxf1 {[%clk 0:01:28.5]}
22... Qb5 {[%clk 0:01:21.2]} 23. Bc1 {[%clk 0:01:20.7]} 23... f6 {[%clk
0:00:37.1]} 24. h5 {[%clk 0:01:04.4]} 24... Nd3 {[%clk 0:00:12.2]} 25. hxg6
{[%clk 0:01:00.9]} 25... Qd7 {[%clk 0:00:08]} 26. Bxd3 {[%clk 0:00:57.1]} 26...
f5 {[%clk 0:00:08.4]} 27. Bc4 {[%clk 0:00:54.2]} 27... Rae8 {[%clk 0:00:03.9]}
28. Bg5 {[%clk 0:00:50.8]} 28... Qg7 {[%clk 0:00:03.3]} 29. gxh7+ {[%clk
0:00:50]} 29... Qxh7 {[%clk 0:00:03.4]} 30. Bxe6+ {[%clk 0:00:46.3]} 30... Kh8
{[%clk 0:00:01.7]} 31. Bf6+ {[%clk 0:00:41.4]} 31... Rxf6 {[%clk 0:00:01.9]} 32.
Qxf6+ {[%clk 0:00:41.4]} 32... Qg7 {[%clk 0:00:02.6]} 33. Qh4+ {[%clk
0:00:28.1]} 33... Qh7 {[%clk 0:00:03.1]} 34. Qxh7+ {[%clk 0:00:28.1]} 34... Kxh7
{[%clk 0:00:03.4]} 35. Bxf5+ {[%clk 0:00:28.7]} 35... Kh6 {[%clk 0:00:02.8]} 36.
f4 {[%clk 0:00:28.8]} 36... Kh5 {[%clk 0:00:01.3]} 37. Rd1 {[%clk 0:00:25.3]}
1-0

[Event "Early-Titled-Tuesday-Blitz-May-07-2024"]
[Site "Chess.com"]
[Date "2024.05.07"]
[Round "2"]
[White "H3nriqueTV"]
[Black "Kotlyar_K"]
[Result "1-0"]
[WhiteElo "2423"]
[BlackElo "2680"]
[TimeControl "180+1"]
[EndTime "8:19:49 PDT"]
[Termination "H3nriqueTV won by checkmate"]

1. e4 {[%clk 0:03:00.9]} 1... c5 {[%clk 0:02:56.4]} 2. Nf3 {[%clk 0:02:59.3]}
2... d6 {[%clk 0:02:55.9]} 3. d4 {[%clk 0:02:59]} 3... cxd4 {[%clk 0:02:56.8]}
4. Nxd4 {[%clk 0:02:59.9]} 4... Nf6 {[%clk 0:02:56.9]} 5. Nc3 {[%clk 0:03:00.6]}
5... g6 {[%clk 0:02:50.5]} 6. Bc4 {[%clk 0:02:59]} 6... Bg7 {[%clk 0:02:10.1]}
7. f3 {[%clk 0:02:55.2]} 7... Qb6 {[%clk 0:02:07.6]} 8. Nb3 {[%clk 0:02:19]}
8... Nc6 {[%clk 0:02:02.6]} 9. h4 {[%clk 0:01:53.6]} 9... O-O {[%clk 0:01:47.5]}
10. Qe2 {[%clk 0:01:51.8]} 10... Nh5 {[%clk 0:01:38.1]} 11. Be3 {[%clk
0:01:51.6]} 11... Qc7 {[%clk 0:01:28.2]} 12. Qd2 {[%clk 0:01:51.4]} 12... Ne5
{[%clk 0:01:17.7]} 13. Be2 {[%clk 0:01:47]} 13... Ng3 {[%clk 0:01:17]} 14. Nd5
{[%clk 0:01:35.4]} 14... Qd8 {[%clk 0:01:00.8]} 15. Rh2 {[%clk 0:01:35.8]} 15...
Nxe2 {[%clk 0:00:59.5]} 16. Qxe2 {[%clk 0:01:35.7]} 16... Bd7 {[%clk 0:00:52]}
17. O-O-O {[%clk 0:01:34]} 17... e6 {[%clk 0:00:44.8]} 18. Nc3 {[%clk
0:01:32.9]} 18... Qc7 {[%clk 0:00:41.1]} 19. h5 {[%clk 0:01:33.3]} 19... Rac8
{[%clk 0:00:35.6]} 20. hxg6 {[%clk 0:01:32.8]} 20... fxg6 {[%clk 0:00:36.5]} 21.
Bh6 {[%clk 0:01:30]} 21... Nc4 {[%clk 0:00:27.6]} 22. Bxg7 {[%clk 0:01:20.3]}
22... Kxg7 {[%clk 0:00:28.5]} 23. Rdh1 {[%clk 0:01:17.3]} 23... Rh8 {[%clk
0:00:28.5]} 24. Qe1 {[%clk 0:00:58.3]} 24... b5 {[%clk 0:00:23.7]} 25. Qh4
{[%clk 0:00:58]} 25... Be8 {[%clk 0:00:13.7]} 26. Nd4 {[%clk 0:00:58.4]} 26...
Bf7 {[%clk 0:00:12.4]} 27. Ndxb5 {[%clk 0:00:55.8]} 27... Qb8 {[%clk 0:00:11.8]}
28. Qh6+ {[%clk 0:00:55.4]} 28... Kg8 {[%clk 0:00:12.2]} 29. Qf4 {[%clk
0:00:51.2]} 29... a6 {[%clk 0:00:11.5]} 30. Qf6 {[%clk 0:00:34.3]} 30... axb5
{[%clk 0:00:09.1]} 31. e5 {[%clk 0:00:20.8]} 31... Nxe5 {[%clk 0:00:09.3]} 32.
Ne4 {[%clk 0:00:20.5]} 32... Qc7 {[%clk 0:00:07.7]} 33. c3 {[%clk 0:00:20.7]}
33... Re8 {[%clk 0:00:05.3]} 34. Qxh8+ {[%clk 0:00:19.6]} 34... Kxh8 {[%clk
0:00:05.6]} 35. Rxh7+ {[%clk 0:00:19.3]} 35... Kg8 {[%clk 0:00:06]} 36. Rh8+
{[%clk 0:00:19.6]} 36... Kg7 {[%clk 0:00:06.4]} 37. R1h7# {[%clk 0:00:20.5]} 1-0

[Event "Early-Titled-Tuesday-Blitz-May-07-2024"]
[Site "Chess.com"]
[Date "2024.05.07"]
[Round "2"]
[White "Lily_Schirmbeck"]
[Black "NigiriSushies"]
[Result "0-1"]
[WhiteElo "1631"]
[BlackElo "2421"]
[TimeControl "180+1"]
[EndTime "8:19:50 PDT"]
[Termination "NigiriSushies won on time"]

1. c4 {[%clk 0:03:00.9]} 1... c6 {[%clk 0:02:51.1]} 2. Nc3 {[%clk 0:02:56.9]}
2... d5 {[%clk 0:02:38.4]} 3. cxd5 {[%clk 0:02:54.8]} 3... cxd5 {[%clk
0:02:36.9]} 4. d4 {[%clk 0:02:54.9]} 4... Nf6 {[%clk 0:02:36.2]} 5. Nf3 {[%clk
0:02:54.7]} 5... Nc6 {[%clk 0:02:36.8]} 6. Bf4 {[%clk 0:02:53.9]} 6... Bf5
{[%clk 0:02:32.9]} 7. e3 {[%clk 0:02:53.5]} 7... e6 {[%clk 0:02:33.2]} 8. a3
{[%clk 0:02:51.8]} 8... Bd6 {[%clk 0:02:32.4]} 9. Bd3 {[%clk 0:02:50.8]} 9...
Bxf4 {[%clk 0:02:31.5]} 10. exf4 {[%clk 0:02:35.9]} 10... Bg4 {[%clk 0:02:30.4]}
11. Be2 {[%clk 0:02:31.5]} 11... O-O {[%clk 0:02:27.6]} 12. O-O {[%clk
0:02:30.6]} 12... Ne4 {[%clk 0:02:19.8]} 13. Ne5 {[%clk 0:02:19.6]} 13... Bxe2
{[%clk 0:02:18.9]} 14. Nxe2 {[%clk 0:02:17.6]} 14... Na5 {[%clk 0:02:03.8]} 15.
f3 {[%clk 0:02:12.4]} 15... Nd6 {[%clk 0:01:48.5]} 16. b4 {[%clk 0:02:08.1]}
16... Nac4 {[%clk 0:01:46]} 17. Qd3 {[%clk 0:01:46.4]} 17... Rc8 {[%clk
0:01:41.6]} 18. Nc1 {[%clk 0:01:31.5]} 18... b6 {[%clk 0:01:34.8]} 19. Nb3
{[%clk 0:01:23.5]} 19... Qe8 {[%clk 0:01:31.8]} 20. Nd2 {[%clk 0:01:20.3]} 20...
Qa4 {[%clk 0:01:09.3]} 21. Ndxc4 {[%clk 0:00:32.8]} 21... dxc4 {[%clk
0:01:03.3]} 22. Qe2 {[%clk 0:00:20.6]} 22... c3 {[%clk 0:00:54.3]} 23. Rfc1
{[%clk 0:00:19.5]} 23... Nb5 {[%clk 0:00:50.7]} 24. Nd3 {[%clk 0:00:14.8]} 24...
Nxd4 {[%clk 0:00:50.2]} 25. Qe3 {[%clk 0:00:13.8]} 25... Nb3 {[%clk 0:00:49.3]}
26. Rab1 {[%clk 0:00:09]} 26... c2 {[%clk 0:00:41.7]} 27. Rb2 {[%clk 0:00:07.3]}
27... Nxc1 {[%clk 0:00:41.4]} 28. Qxc1 {[%clk 0:00:07.7]} 28... Qxa3 {[%clk
0:00:40.8]} 29. Rxc2 {[%clk 0:00:06.3]} 29... Qxc1+ {[%clk 0:00:33.6]} 30. Rxc1
{[%clk 0:00:06.6]} 30... Rxc1+ {[%clk 0:00:33.1]} 31. Nxc1 {[%clk 0:00:07.5]}
31... Rd8 {[%clk 0:00:33.4]} 32. Kf2 {[%clk 0:00:06.2]} 32... Rd1 {[%clk
0:00:30.1]} 33. Ne2 {[%clk 0:00:05.7]} 33... Rb1 {[%clk 0:00:30]} 34. Nc3 {[%clk
0:00:05]} 34... Rxb4 {[%clk 0:00:29.9]} 35. Ne4 {[%clk 0:00:04.8]} 35... a5
{[%clk 0:00:28.1]} 36. Nc3 {[%clk 0:00:03.7]} 36... a4 {[%clk 0:00:27.4]} 37.
Na2 {[%clk 0:00:03.1]} 37... Rb2+ {[%clk 0:00:27.2]} 0-1

[Event "Early-Titled-Tuesday-Blitz-May-07-2024"]
[Site "Chess.com"]
[Date "2024.05.07"]
[Round "2"]
[White "HajiyevKanan"]
[Black "djokovic74"]
[Result "1/2-1/2"]
[WhiteElo "2573"]
[BlackElo "2814"]
[TimeControl "180+1"]
[EndTime "8:19:53 PDT"]
[Termination "Game drawn by repetition"]

1. d4 {[%clk 0:03:00.9]} 1... e6 {[%clk 0:03:00]} 2. c4 {[%clk 0:03:00.7]} 2...
Nf6 {[%clk 0:03:00.6]} 3. Nf3 {[%clk 0:03:00.8]} 3... Bb4+ {[%clk 0:03:00.8]} 4.
Bd2 {[%clk 0:03:00.8]} 4... Qe7 {[%clk 0:03:01.3]} 5. a3 {[%clk 0:03:01.5]} 5...
Bxd2+ {[%clk 0:03:01.2]} 6. Qxd2 {[%clk 0:03:02.4]} 6... b6 {[%clk 0:03:01.5]}
7. Nc3 {[%clk 0:03:03]} 7... Bb7 {[%clk 0:03:02.2]} 8. g3 {[%clk 0:03:03.3]}
8... d6 {[%clk 0:03:01.4]} 9. Bg2 {[%clk 0:03:03.2]} 9... Nbd7 {[%clk
0:03:01.9]} 10. O-O {[%clk 0:03:03.5]} 10... O-O {[%clk 0:03:01.3]} 11. Rfe1
{[%clk 0:03:04.2]} 11... Ne4 {[%clk 0:02:54.6]} 12. Nxe4 {[%clk 0:03:04.1]}
12... Bxe4 {[%clk 0:02:55.4]} 13. Nh4 {[%clk 0:03:02.3]} 13... Bxg2 {[%clk
0:02:55.3]} 14. Nxg2 {[%clk 0:03:03.2]} 14... a5 {[%clk 0:02:54.8]} 15. b4
{[%clk 0:03:02.7]} 15... e5 {[%clk 0:02:43.4]} 16. e4 {[%clk 0:02:58.8]} 16...
exd4 {[%clk 0:02:31.2]} 17. Qxd4 {[%clk 0:02:59.1]} 17... Ne5 {[%clk 0:02:31.4]}
18. Qc3 {[%clk 0:02:41.8]} 18... axb4 {[%clk 0:02:29.7]} 19. axb4 {[%clk
0:02:41]} 19... Qf6 {[%clk 0:02:30.1]} 20. Kf1 {[%clk 0:01:35.1]} 20... Qe6
{[%clk 0:02:05.6]} 21. c5 {[%clk 0:01:20.5]} 21... bxc5 {[%clk 0:01:46.5]} 22.
bxc5 {[%clk 0:01:21.4]} 22... Qh3 {[%clk 0:01:46.5]} 23. f3 {[%clk 0:00:52]}
23... Qxh2 {[%clk 0:01:31]} 24. Kf2 {[%clk 0:00:52.3]} 24... Rxa1 {[%clk
0:01:10.2]} 25. Rxa1 {[%clk 0:00:53.2]} 25... Rb8 {[%clk 0:01:03.1]} 26. Rd1
{[%clk 0:00:33.5]} 26... h6 {[%clk 0:00:35.9]} 27. cxd6 {[%clk 0:00:24.6]} 27...
cxd6 {[%clk 0:00:36.4]} 28. Qc2 {[%clk 0:00:25.2]} 28... Nc4 {[%clk 0:00:12.9]}
29. Qxc4 {[%clk 0:00:16.6]} 29... Rb2+ {[%clk 0:00:13.1]} 30. Ke3 {[%clk
0:00:17.2]} 30... Qxg2 {[%clk 0:00:12]} 31. Qc8+ {[%clk 0:00:17.2]} 31... Kh7
{[%clk 0:00:07.7]} 32. Qf5+ {[%clk 0:00:18.1]} 32... Kg8 {[%clk 0:00:08]} 33.
Qc8+ {[%clk 0:00:18.4]} 33... Kh7 {[%clk 0:00:08.4]} 34. Qf5+ {[%clk 0:00:19.3]}
34... Kh8 {[%clk 0:00:06.2]} 35. Qc8+ {[%clk 0:00:17.2]} 35... Kh7 {[%clk
0:00:06.5]} 1/2-1/2

[Event "Early-Titled-Tuesday-Blitz-May-07-2024"]
[Site "Chess.com"]
[Date "2024.05.07"]
[Round "2"]
[White "HouseOfDurin"]
[Black "Manukyan_Artak"]
[Result "1-0"]
[WhiteElo "2222"]
[BlackElo "2542"]
[TimeControl "180+1"]
[EndTime "8:19:54 PDT"]
[Termination "HouseOfDurin won on time"]

1. d4 {[%clk 0:03:00.9]} 1... d5 {[%clk 0:02:59.6]} 2. Bg5 {[%clk 0:03:00.9]}
2... h6 {[%clk 0:02:58.9]} 3. Bh4 {[%clk 0:03:01]} 3... c5 {[%clk 0:02:58.4]} 4.
c3 {[%clk 0:03:00.8]} 4... Qb6 {[%clk 0:02:58.1]} 5. Qc2 {[%clk 0:03:00.6]} 5...
Nc6 {[%clk 0:02:56.9]} 6. e3 {[%clk 0:03:00.5]} 6... Bf5 {[%clk 0:02:56.5]} 7.
Qxf5 {[%clk 0:03:00.5]} 7... Qxb2 {[%clk 0:02:56.3]} 8. Qxd5 {[%clk 0:03:01.2]}
8... Qxa1 {[%clk 0:02:53]} 9. Qb3 {[%clk 0:03:00.9]} 9... Rb8 {[%clk 0:02:32.4]}
10. Bb5 {[%clk 0:02:54.9]} 10... Rc8 {[%clk 0:02:25.8]} 11. Ne2 {[%clk
0:02:44.4]} 11... e6 {[%clk 0:02:19.9]} 12. O-O {[%clk 0:02:40.6]} 12... Be7
{[%clk 0:02:09.6]} 13. Bxe7 {[%clk 0:02:27.7]} 13... Nxe7 {[%clk 0:02:09.3]} 14.
Nd2 {[%clk 0:02:28.2]} 14... Qxf1+ {[%clk 0:02:00]} 15. Kxf1 {[%clk 0:02:29.1]}
15... O-O {[%clk 0:01:58.8]} 16. Bxc6 {[%clk 0:02:11.9]} 16... Nxc6 {[%clk
0:01:54.1]} 17. dxc5 {[%clk 0:02:12.1]} 17... Rc7 {[%clk 0:01:42.4]} 18. Nd4
{[%clk 0:02:11.2]} 18... Ne5 {[%clk 0:01:42.2]} 19. Ne4 {[%clk 0:01:59.5]} 19...
Nd3 {[%clk 0:01:38.2]} 20. Qb5 {[%clk 0:01:47.1]} 20... Ne5 {[%clk 0:01:30.6]}
21. f4 {[%clk 0:01:46.2]} 21... Ng4 {[%clk 0:01:27.5]} 22. Ke2 {[%clk
0:01:38.4]} 22... Rfc8 {[%clk 0:01:25.3]} 23. Nb3 {[%clk 0:01:36.3]} 23... Nxh2
{[%clk 0:01:14.5]} 24. Nf2 {[%clk 0:01:36.1]} 24... h5 {[%clk 0:01:13.5]} 25.
Qd3 {[%clk 0:01:24.9]} 25... g6 {[%clk 0:01:08.8]} 26. Qd1 {[%clk 0:01:22.9]}
26... a5 {[%clk 0:01:06.9]} 27. a4 {[%clk 0:01:22.1]} 27... b6 {[%clk 0:00:57]}
28. Qh1 {[%clk 0:01:19.2]} 28... Ng4 {[%clk 0:00:52.3]} 29. Nxg4 {[%clk
0:01:19.8]} 29... hxg4 {[%clk 0:00:53.2]} 30. Qh4 {[%clk 0:01:15.6]} 30... bxc5
{[%clk 0:00:51.1]} 31. Qxg4 {[%clk 0:01:12.2]} 31... Rb8 {[%clk 0:00:50.9]} 32.
Nxa5 {[%clk 0:01:11.2]} 32... Rb2+ {[%clk 0:00:41.7]} 33. Kf3 {[%clk 0:01:10.8]}
33... Ra2 {[%clk 0:00:33.9]} 34. Qg5 {[%clk 0:01:06]} 34... Rc8 {[%clk
0:00:28.6]} 35. Nc4 {[%clk 0:00:52]} 35... Rxa4 {[%clk 0:00:18.2]} 36. Nd6
{[%clk 0:00:51.9]} 36... Rf8 {[%clk 0:00:15.6]} 37. Qh6 {[%clk 0:00:41.8]} 37...
Ra7 {[%clk 0:00:12.3]} 38. Ne4 {[%clk 0:00:41.6]} 38... f5 {[%clk 0:00:12.4]}
39. Qxg6+ {[%clk 0:00:40.5]} 39... Rg7 {[%clk 0:00:12.8]} 40. Qxe6+ {[%clk
0:00:40.7]} 40... Kh7 {[%clk 0:00:12.6]} 41. Ng5+ {[%clk 0:00:40.9]} 41... Kh8
{[%clk 0:00:12.8]} 42. Qh6+ {[%clk 0:00:40.3]} 42... Kg8 {[%clk 0:00:13.2]} 43.
Ne6 {[%clk 0:00:38.2]} 1-0